[Event "Challengers Triathlon (GM2)"]
[Site "Biel, CH"]
[Date "2025.07.23"]
[Round "22"]
[White "Theodorou, Nikolas"]
[Black "Jumabayev, Rinat"]
[Result "1/2-1/2"]
[Board "2"]
[TimeControl "40/7200+30:1800+30"]
[WhiteFideId "4262875"]
[BlackFideId "13702661"]
[WhiteTitle "GM"]
[BlackTitle "GM"]
[WhiteElo "2625"]
[BlackElo "2546"]
[WhiteTeam "GRE"]
[BlackTeam "KAZ"]
[WhiteClock "0:19:09"]
[BlackClock "0:02:47"]
[Variant "Standard"]

1. d4 {[%clk 1:59:38]}  d5 {[%clk 1:59:01]} 2. Nf3 {[%clk 1:59:16]}  Nf6 {[%clk 1:58:43]} 3. Bf4 {[%clk 1:59:11]}  c5 {[%clk 1:58:25]} 4. e3 {[%clk 1:59:00]}  e6 {[%clk 1:50:17]} 5. Be2 {[%clk 1:54:59]}  Nc6 {[%clk 1:42:16]} 6. O-O {[%clk 1:54:22]}  Bd6 {[%clk 1:41:14]} 7. dxc5 {[%clk 1:54:12]}  Bxc5 {[%clk 1:40:34]} 8. c4 {[%clk 1:53:50]}  O-O {[%clk 1:31:30]} 9. Nc3 {[%clk 1:53:41]}  dxc4 {[%clk 1:31:13]} 10. Bxc4 {[%clk 1:53:19]}  a6 {[%clk 1:29:25]} 11. a3 {[%clk 1:48:31]}  b5 {[%clk 1:21:46]} 12. Bd3 {[%clk 1:45:54]}  Be7 {[%clk 1:17:07]} 13. Ne4 {[%clk 1:32:59]}  Nd5 {[%clk 1:11:22]} 14. Rc1 {[%clk 1:31:04]}  Bb7 {[%clk 0:47:43]} 15. Bg3 {[%clk 1:18:58]}  Rc8 {[%clk 0:44:11]} 16. h4 {[%clk 1:09:15]}  h6 {[%clk 0:39:46]} 17. Bb1 {[%clk 1:01:19]}  Qb6 {[%clk 0:27:02]} 18. Nd6 {[%clk 0:54:12]}  Bxd6 {[%clk 0:25:07]} 19. Bxd6 {[%clk 0:53:43]}  Rfd8 {[%clk 0:24:57]} 20. Bc5 {[%clk 0:53:12]}  Qc7 {[%clk 0:24:25]} 21. Qc2 {[%clk 0:48:20]}  Nf6 {[%clk 0:24:20]} 22. b4 {[%clk 0:43:44]}  Ne7 {[%clk 0:14:49]} 23. Qb2 {[%clk 0:36:38]}  Bxf3 {[%clk 0:13:38]} 24. gxf3 {[%clk 0:36:05]}  Qb7 {[%clk 0:13:32]} 25. Qe5 {[%clk 0:33:05]}  Qxf3 {[%clk 0:09:48]} 26. Bxe7 {[%clk 0:28:16]}  Rxc1 {[%clk 0:09:46]} 27. Rxc1 {[%clk 0:28:10]}  Rd1+ {[%clk 0:09:40]} 28. Rxd1 {[%clk 0:28:02]}  Qxd1+ {[%clk 0:09:35]} 29. Kg2 {[%clk 0:27:59]}  Qxb1 {[%clk 0:09:28]} 30. Bxf6 {[%clk 0:26:54]}  Qg6+ {[%clk 0:09:17]} 31. Bg5 {[%clk 0:26:23]}  hxg5 {[%clk 0:08:15]} 32. hxg5 {[%clk 0:26:13]}  Qd3 {[%clk 0:06:47]} 33. Kf3 {[%clk 0:22:58]}  Qd1+ {[%clk 0:03:56]} 34. Kg3 {[%clk 0:19:18]}  Qg1+ {[%clk 0:03:52]} 35. Kf3 {[%clk 0:19:14]}  Qd1+ {[%clk 0:03:45]} 36. Kg3 {[%clk 0:19:11]}  Qg1+ {[%clk 0:03:19]} 37. Kf3 {[%clk 0:19:09]}  Qd1+ {[%clk 0:02:47]} 1/2-1/2

[Event "Challengers Triathlon (GM2)"]
[Site "Biel, CH"]
[Date "2025.07.24"]
[Round "23"]
[White "Navara, David"]
[Black "Jumabayev, Rinat"]
[Result "1/2-1/2"]
[Board "1"]
[TimeControl "40/7200+30:1800+30"]
[WhiteFideId "309095"]
[BlackFideId "13702661"]
[WhiteTitle "GM"]
[BlackTitle "GM"]
[WhiteElo "2662"]
[BlackElo "2546"]
[WhiteTeam "CZE"]
[BlackTeam "KAZ"]
[WhiteClock "0:05:10"]
[BlackClock "0:01:29"]
[Variant "Standard"]

1. e4 {[%clk 1:59:57]}  e5 {[%clk 1:59:38]} 2. Nf3 {[%clk 1:59:53]}  Nc6 {[%clk 1:59:36]} 3. Bc4 {[%clk 1:59:46]}  Nf6 {[%clk 1:58:07]} 4. d3 {[%clk 1:59:41]}  Be7 {[%clk 1:54:34]} 5. O-O {[%clk 1:59:27]}  O-O {[%clk 1:54:28]} 6. Re1 {[%clk 1:59:19]}  d6 {[%clk 1:54:21]} 7. a4 {[%clk 1:59:10]}  Re8 {[%clk 1:50:24]} 8. a5 {[%clk 1:53:24]}  a6 {[%clk 1:29:16]} 9. Nc3 {[%clk 1:50:21]}  h6 {[%clk 1:28:15]} 10. h3 {[%clk 1:49:26]}  Bf8 {[%clk 1:25:39]} 11. Bd2 {[%clk 1:44:13]}  Be6 {[%clk 1:17:00]} 12. Bxe6 {[%clk 1:41:01]}  Rxe6 {[%clk 1:16:55]} 13. Nd5 {[%clk 1:40:30]}  Ne7 {[%clk 1:13:55]} 14. Nxf6+ {[%clk 1:37:14]}  Rxf6 {[%clk 1:13:46]} 15. d4 {[%clk 1:35:01]}  exd4 {[%clk 1:07:41]} 16. Nxd4 {[%clk 1:34:45]}  Qd7 {[%clk 1:05:22]} 17. c4 {[%clk 1:23:11]}  Re8 {[%clk 1:02:30]} 18. Ra3 {[%clk 1:18:00]}  Nc6 {[%clk 0:43:31]} 19. Nf5 {[%clk 1:17:08]}  Rfe6 {[%clk 0:37:05]} 20. f3 {[%clk 0:58:29]}  Ne5 {[%clk 0:32:53]} 21. Rc3 {[%clk 0:54:12]}  Nc6 {[%clk 0:25:34]} 22. Rc2 {[%clk 0:49:35]}  Kh7 {[%clk 0:14:44]} 23. Ne3 {[%clk 0:36:05]}  Be7 {[%clk 0:12:07]} 24. Bc3 {[%clk 0:33:12]}  Bf6 {[%clk 0:09:04]} 25. Bxf6 {[%clk 0:32:53]}  Rxf6 {[%clk 0:09:03]} 26. Nd5 {[%clk 0:32:41]}  Rfe6 {[%clk 0:08:11]} 27. b4 {[%clk 0:32:31]}  f5 {[%clk 0:04:11]} 28. Rce2 {[%clk 0:32:22]}  fxe4 {[%clk 0:03:48]} 29. Qb1 {[%clk 0:32:17]}  Kg8 {[%clk 0:03:15]} 30. Rxe4 {[%clk 0:32:04]}  Nd8 {[%clk 0:02:14]} 31. Kf2 {[%clk 0:27:43]}  c6 {[%clk 0:02:04]} 32. Nf4 {[%clk 0:24:53]}  Rxe4 {[%clk 0:02:00]} 33. Rxe4 {[%clk 0:24:47]}  Nf7 {[%clk 0:01:16]} 34. Ng6 {[%clk 0:18:58]}  Ne5 {[%clk 0:00:52]} 35. Nxe5 {[%clk 0:18:52]}  Rxe5 {[%clk 0:00:45]} 36. f4 {[%clk 0:18:40]}  Re7 {[%clk 0:00:29]} 37. Qe1 {[%clk 0:13:02]}  Rxe4 {[%clk 0:00:28]} 38. Qxe4 {[%clk 0:12:56]}  Kf7 {[%clk 0:00:28]} 39. g4 {[%clk 0:10:35]}  d5 {[%clk 0:00:21]} 40. Qd4 {[%clk 0:41:02]}  Qe6 {[%clk 0:30:39]} 41. cxd5 {[%clk 0:39:12]}  cxd5 {[%clk 0:24:51]} 42. f5 {[%clk 0:38:40]}  Qd6 {[%clk 0:19:38]} 43. Kf3 {[%clk 0:38:35]}  Qd7 {[%clk 0:10:42]} 44. Ke3 {[%clk 0:30:52]}  Qd6 {[%clk 0:09:22]} 45. Qf4 {[%clk 0:26:55]}  Qe7+ {[%clk 0:08:59]} 46. Kd3 {[%clk 0:23:00]}  Qe1 {[%clk 0:05:00]} 47. Qc7+ {[%clk 0:22:01]}  Kg8 {[%clk 0:05:26]} 48. Qd8+ {[%clk 0:22:20]}  Kh7 {[%clk 0:05:52]} 49. Qxd5 {[%clk 0:22:35]}  Qxb4 {[%clk 0:06:16]} 50. f6 {[%clk 0:12:23]}  Qb1+ {[%clk 0:05:49]} 51. Kc3 {[%clk 0:09:54]}  Qc1+ {[%clk 0:04:25]} 52. Kb4 {[%clk 0:09:49]}  Qb2+ {[%clk 0:04:25]} 53. Kc5 {[%clk 0:09:52]}  b6+ {[%clk 0:04:25]} 54. axb6 {[%clk 0:02:33]}  Qb5+ {[%clk 0:04:53]} 55. Kd6 {[%clk 0:02:56]}  Qxb6+ {[%clk 0:05:16]} 56. Kd7 {[%clk 0:03:22]}  Qxf6 {[%clk 0:05:25]} 57. h4 {[%clk 0:03:19]}  Qxh4 {[%clk 0:01:49]} 58. Qf5 {[%clk 0:02:52]}  Kh8 {[%clk 0:02:14]} 59. Qf8+ {[%clk 0:03:16]}  Kh7 {[%clk 0:02:43]} 60. Qf5 {[%clk 0:03:39]}  Kg8 {[%clk 0:03:08]} 61. Qe6+ {[%clk 0:03:34]}  Kh8 {[%clk 0:03:36]} 62. Qe8+ {[%clk 0:03:58]}  Kh7 {[%clk 0:04:05]} 63. Qe4 {[%clk 0:04:21]}  Kh8 {[%clk 0:04:28]} 64. Qe8+ {[%clk 0:04:46]}  Kh7 {[%clk 0:04:57]} 65. Qe4 {[%clk 0:05:10]}  g6 {[%clk 0:03:34]} 66. Qb7 {[%clk 0:00:36]}  Qf6 {[%clk 0:03:24]} 67. Ke8+ {[%clk 0:01:01]}  Kh8 {[%clk 0:03:05]} 68. Qd5 {[%clk 0:01:10]}  Qg7 {[%clk 0:02:01]} 69. Qc6 {[%clk 0:00:57]}  a5 {[%clk 0:02:11]} 70. Qa6 {[%clk 0:00:39]}  Qe5+ {[%clk 0:01:28]} 71. Kf7 {[%clk 0:00:44]}  Qc7+ {[%clk 0:01:47]} 72. Kxg6 {[%clk 0:00:50]}  Qg7+ {[%clk 0:02:07]} 73. Kf5 {[%clk 0:01:16]}  Qg5+ {[%clk 0:02:33]} 74. Ke4 {[%clk 0:01:42]}  Qxg4+ {[%clk 0:03:00]} 75. Kd3 {[%clk 0:01:39]}  Qf5+ {[%clk 0:03:15]} 76. Kc3 {[%clk 0:02:04]}  Kg7 {[%clk 0:03:24]} 77. Qb7+ {[%clk 0:01:40]}  Kg6 {[%clk 0:03:44]} 78. Qg2+ {[%clk 0:02:03]}  Kh5 {[%clk 0:02:05]} 79. Qh2+ {[%clk 0:01:27]}  Kg5 {[%clk 0:02:18]} 80. Qd2+ {[%clk 0:01:05]}  Qf4 {[%clk 0:02:02]} 81. Qd5+ {[%clk 0:01:28]}  Qf5 {[%clk 0:02:12]} 82. Qd2+ {[%clk 0:01:46]}  Qf4 {[%clk 0:02:31]} 83. Qd5+ {[%clk 0:02:10]}  Kg4 {[%clk 0:02:53]} 84. Qxa5 {[%clk 0:02:26]}  h5 {[%clk 0:03:19]} 85. Kd3 {[%clk 0:00:39]}  h4 {[%clk 0:03:22]} 86. Ke2 {[%clk 0:00:41]}  h3 {[%clk 0:02:17]} 87. Qd5 {[%clk 0:00:36]}  Kg3 {[%clk 0:02:22]} 88. Qg8+ {[%clk 0:00:33]}  Kh2 {[%clk 0:02:50]} 89. Qg6 {[%clk 0:00:36]}  Qc4+ {[%clk 0:01:21]} 90. Kf2 {[%clk 0:00:35]}  Qa2+ {[%clk 0:01:23]} 91. Ke1 {[%clk 0:00:44]}  Qa1+ {[%clk 0:01:22]} 92. Ke2 {[%clk 0:00:46]}  Qb2+ {[%clk 0:01:43]} 93. Ke1 {[%clk 0:01:11]}  Qc3+ {[%clk 0:01:17]} 94. Ke2 {[%clk 0:01:35]}  Qg3 {[%clk 0:01:43]} 95. Qf5 {[%clk 0:01:59]}  Qg2+ {[%clk 0:01:38]} 96. Qf2 {[%clk 0:01:53]}  Kh1 {[%clk 0:01:40]} 97. Ke1 {[%clk 0:02:16]}  Qe4+ {[%clk 0:01:16]} 98. Kd2 {[%clk 0:02:41]}  Qb4+ {[%clk 0:01:16]} 99. Ke2 {[%clk 0:03:02]}  Qe4+ {[%clk 0:00:56]} 100. Kd2 {[%clk 0:03:28]}  Qd5+ {[%clk 0:01:21]} 101. Ke1 {[%clk 0:03:44]}  Qe5+ {[%clk 0:00:57]} 102. Kf1 {[%clk 0:03:53]}  Qb5+ {[%clk 0:00:55]} 103. Ke1 {[%clk 0:04:17]}  Qb1+ {[%clk 0:01:18]} 104. Ke2 {[%clk 0:04:38]}  Qc2+ {[%clk 0:01:26]} 105. Ke1 {[%clk 0:05:02]}  Qc1+ {[%clk 0:01:51]} 106. Ke2 {[%clk 0:05:28]}  Qc2+ {[%clk 0:01:27]} 107. Ke1 {[%clk 0:04:44]}  Qe4+ {[%clk 0:01:25]} 108. Kd2 {[%clk 0:05:09]}  Qg2 {[%clk 0:01:29]} 109. Ke1 {[%clk 0:05:05]}  Qg1+ {[%clk 0:01:30]} 110. Ke2 {[%clk 0:05:10]}  Qxf2+ {[%clk 0:01:29]} 1/2-1/2

[Event "Challengers Triathlon (GM2)"]
[Site "Biel, CH"]
[Date "2025.07.24"]
[Round "23"]
[White "Hakobyan, Aram"]
[Black "Theodorou, Nikolas"]
[Result "1/2-1/2"]
[Board "2"]
[TimeControl "40/7200+30:1800+30"]
[WhiteFideId "13306677"]
[BlackFideId "4262875"]
[WhiteTitle "GM"]
[BlackTitle "GM"]
[WhiteElo "2621"]
[BlackElo "2625"]
[WhiteTeam "ARM"]
[BlackTeam "GRE"]
[WhiteClock "1:47:43"]
[BlackClock "1:55:05"]
[Variant "Standard"]

1. e4 {[%clk 1:59:47]}  e5 {[%clk 1:59:53]} 2. Nf3 {[%clk 1:59:39]}  Nc6 {[%clk 1:59:47]} 3. Bb5 {[%clk 1:59:26]}  Nf6 {[%clk 1:59:22]} 4. O-O {[%clk 1:54:34]}  Nxe4 {[%clk 1:59:07]} 5. d4 {[%clk 1:52:45]}  Nd6 {[%clk 1:58:42]} 6. dxe5 {[%clk 1:49:52]}  Nxb5 {[%clk 1:58:32]} 7. a4 {[%clk 1:49:46]}  Nbd4 {[%clk 1:56:19]} 8. Nxd4 {[%clk 1:49:43]}  d5 {[%clk 1:56:03]} 9. exd6 {[%clk 1:49:09]}  Nxd4 {[%clk 1:55:55]} 10. Qxd4 {[%clk 1:48:57]}  Qxd6 {[%clk 1:55:49]} 11. Qe4+ {[%clk 1:48:20]}  Qe6 {[%clk 1:55:41]} 12. Qd4 {[%clk 1:48:13]}  Qd6 {[%clk 1:55:34]} 13. Qe4+ {[%clk 1:48:05]}  Qe6 {[%clk 1:55:27]} 14. Qd4 {[%clk 1:47:59]}  Qd6 {[%clk 1:55:05]} 15. Qe4+ {[%clk 1:47:43]} 1/2-1/2